Cogmind - Beta 12 X1 @@@ ROGUE MODE // 2022.08.27 @ 11:39:34 Player: aoemica Result: Escaped! Performance ------------- Evolutions (9) 4500 Regions Visited (17) 3400 Robots Destroyed (17) 85 Value Destroyed (385) 385 Prototype IDs (1) 20 Alien Tech Used (0) 0 Bonus (26618) 26618 TOTAL SCORE: 35008 Bonus ------- Pacifist 928 Entered DSFs 1000 Win 3000 Win Speed 21690 Cogmind --------- Core Integrity 1600/1600 Matter 258/300 Energy 158/170 System Corruption 0% Temperature Cool (18) Movement Flying (25) Location To Epsilon Eridani Parts ------- > --- POWER (2) -------- Light Antimatter Reactor > --- PROPULSION (10) -- Antigrav Array Xenon Bombardment Thruster Xenon Bombardment Thruster Xenon Bombardment Thruster Field Propulsion Drive Impulse Thruster Impulse Thruster > --- UTILITY (11) ----- Improved Cooling System Machine Analyzer Enhanced Optical Array Hacking Suite System Shield > --- WEAPON (2) ------- Heavy Machine Gun Great Maul > --- INVENTORY (5) ---- Micro Antimatter Reactor Light Quantum Reactor Rocket Launcher Peak State ------------ > --- POWER ------------ Light Antimatter Reactor > --- PROPULSION ------- Antigrav Array VTOL Module Xenon Bombardment Thruster Xenon Bombardment Thruster Xenon Bombardment Thruster Field Propulsion Drive Impulse Thruster Impulse Thruster > --- UTILITY ---------- Improved Cooling System Machine Analyzer Enhanced Optical Array Improved Propulsion Shielding Hacking Suite System Shield > --- WEAPON ----------- Heavy Machine Gun Great Maul > --- INVENTORY -------- Micro Antimatter Reactor Light Quantum Reactor Rocket Launcher [Rating: 87] Favorites ----------- Power Light Fission Core Engine Light Ion Engine Power Core Light Fission Core Reactor Light Antimatter Reactor Propulsion Xenon Bombardment Thruster Treads Light Treads Leg Carbon-fiber Leg Hover Unit Antigrav Array Flight Unit Xenon Bombardment Thruster Utility Hacking Suite Device Improved Sensor Array Storage Small Storage Unit Processor Machine Analyzer Hackware Hacking Suite Protection Improved Propulsion Shielding Weapon Great Maul Energy Gun Small Laser Ballistic Gun Heavy Machine Gun Launcher Rocket Launcher Impact Weapon Great Maul Build | -11 -10 -10 -9 -9 -9 -8 -8 -7 -6 -6 -5 -4 -4 -3 -3 -2 -1 ------- Run | Scr Mat Min Mat Min Exi Min Mat Fac Fac DSF Fac Fac DSF Res Tes Res Acc Slots Evolved 18 | . . . 2 . . . 2 2 2 . 2 2 . 2 . 2 2 Power 1 | . . . . . . . . . . . 1 . . . . . . Propulsion 8 | . . . 2 . . . 1 1 1 . . . . 1 . 1 1 Utility 9 | . . . . . . . 1 1 1 . 1 2 . 1 . 1 1 Weapon . | . . . . . . . . . . . . . . . . . . Parts Attached 46 | 2 . . 1 . . . 6 10 1 2 6 . 4 8 . 4 2 Power 5 | . . . . . . . . . . 1 1 . 1 1 . 1 . Engine . | . . . . . . . . . . . . . . . . . . Core 4 | . . . . . . . . . . 1 1 . 1 1 . . . Reactor 1 | . . . . . . . . . . . . . . . . 1 . Propulsion 23 | 2 . . 1 . . . 4 6 1 . 1 . 1 3 . 3 1 Treads 2 | 2 . . . . . . . . . . . . . . . . . Leg 3 | . . . . . . . 3 . . . . . . . . . . Wheel . | . . . . . . . . . . . . . . . . . . Hover 2 | . . . 1 . . . . . . . . . . . . 1 . Flight 16 | . . . . . . . 1 6 1 . 1 . 1 3 . 2 1 Utility 14 | . . . . . . . 2 2 . 1 4 . 2 2 . . 1 Device 3 | . . . . . . . . 1 . . . . 1 . . . 1 Storage . | . . . . . . . . . . . . . . . . . . Processor 2 | . . . . . . . 1 . . . 1 . . . . . . Hackware 4 | . . . . . . . 1 1 . 1 . . . 1 . . . Protection 5 | . . . . . . . . . . . 3 . 1 1 . . . Artifact . | . . . . . . . . . . . . . . . . . . Weapon 4 | . . . . . . . . 2 . . . . . 2 . . . Energy Gun . | . . . . . . . . . . . . . . . . . . Energy Cannon . | . . . . . . . . . . . . . . . . . . Ballistic Gun 2 | . . . . . . . . 1 . . . . . 1 . . . Ballistic Cannon . | . . . . . . . . . . . . . . . . . . Launcher 1 | . . . . . . . . . . . . . . 1 . . . Special Weapon . | . . . . . . . . . . . . . . . . . . Impact Weapon 1 | . . . . . . . . 1 . . . . . . . . . Slashing Weapon . | . . . . . . . . . . . . . . . . . . Piercing Weapon . | . . . . . . . . . . . . . . . . . . Special Melee Weapon . | . . . . . . . . . . . . . . . . . . Unidentified Prototypes 1 | . . . . . . . 1 . . . . . . . . . . Parts Lost 23 | . . . 1 . . 3 4 . . . 3 . 3 4 . 1 4 Power 2 | . . . . . . . . . . . 1 . . . . 1 . Propulsion 13 | . . . 1 . . 1 4 . . . 2 . 1 3 . . 1 Utility 6 | . . . . . . . . . . . . . 2 1 . . 3 Weapon 2 | . . . . . . 2 . . . . . . . . . . . Highest Loss Streak 6 | . . . 1 . . 3 3 . . . 3 . 3 6 . 1 3 To Critical Strikes . | . . . . . . . . . . . . . . . . . . Average Slot Usage (%) 58 | . 57 57 51 44 44 35 25 77 86 91 84 63 64 64 66 64 66 Core 1 | . . . . . . . . . . . 3 . 3 4 4 2 . Treads 4 | . 28 28 22 22 22 16 3 . . . . . . . . . . Leg 2 | . . . . . . . 13 . . . . . . . . . . Flight 19 | . . . . . . . 2 40 46 46 38 26 24 20 19 19 24 Processor 5 | . . . . . . . 2 7 6 6 10 10 10 9 9 8 8 Hackware 10 | . . . . . . . 4 13 13 18 17 15 15 16 19 17 10 Protection 1 | . . . . . . . . . . . 5 5 5 3 4 4 4 Energy Gun 2 | . 14 14 11 11 11 9 . . . . . . . . . . . Ballistic Gun 4 | . 14 14 11 11 11 9 . 4 6 6 . . . 2 4 4 4 Impact Weapon 3 | . . . . . . . . 7 6 6 5 5 5 4 4 4 4 Naked Turns 24 | . . . . . . . 24 . . . . . . . . . . Heaviest Build 25 | 2 2 2 2 2 2 2 . 8 8 10 12 7 14 18 18 23 25 Greatest Support 43 | 3 3 3 3 3 3 3 5 8 8 35 23 15 27 28 22 36 43 Greatest Overweight (x) . | . . . . . . . . . . . . . . . . . . Average Overweight (x) . | . . . . . . . . . . . . . . . . . . Largest Inventory Capacity 8 | 8 5 5 5 5 5 5 5 5 5 5 5 5 5 5 5 5 5 Average Capacity 5 | 6 5 5 5 5 5 5 5 5 5 5 5 5 5 5 5 5 5 Most Carried 5 | 5 . . 4 4 4 4 5 5 2 5 5 5 5 5 5 5 4 Average Carried 3 | 2 . . 1 4 4 4 4 1 2 4 4 5 4 4 5 4 3 Final Capacity 5 | 5 5 5 5 5 5 5 5 5 5 5 5 5 5 5 5 5 5 Final Carried 5 | . . . 4 4 4 4 5 3 2 5 5 5 4 5 5 4 3 Class Distribution -------------------- 58% | Hacker-Sprinter 38% | Mutant Dominant Class ---------------- Mutant | -10/Materials Mutant | -10/Mines Mutant | -9/Materials Mutant | -9/Mines Mutant | -9/Exiles Mutant | -8/Mines Mutant | -8/Materials Hacker-Sprinter | -7/Factory Hacker-Sprinter | -6/Factory Hacker-Sprinter | -6/DSF Hacker-Sprinter | -5/Factory Hacker-Sprinter | -4/Factory Hacker-Sprinter | -4/DSF Hacker-Sprinter | -3/Research Hacker-Sprinter | -3/Testing Hacker-Sprinter | -2/Research Hacker-Sprinter | -1/Access Resources | -11 -10 -10 -9 -9 -9 -8 -8 -7 -6 -6 -5 -4 -4 -3 -3 -2 -1 ----------- Run | Scr Mat Min Mat Min Exi Min Mat Fac Fac DSF Fac Fac DSF Res Tes Res Acc Matter Collected 631 | 200 . . . . . 18 1 75 . 1 216 . . 97 . 23 . Remotely . | . . . . . . . . . . . . . . . . . . Salvage Created 583 | . . . . . . . . 93 . . 252 47 . 168 . 23 . Parts 13 | . . . . . . . . . . . 3 . . 10 . . . Haulers Intercepted 2 | . . . . . . . . . . . 1 . . 1 . . . Recyclers Shooed . | . . . . . . . . . . . . . . . . . . Parts Field Recycled . | . . . . . . . . . . . . . . . . . . Retrieved Matter . | . . . . . . . . . . . . . . . . . . Parts Self-Destructed . | . . . . . . . . . . . . . . . . . . Prevented . | . . . . . . . . . . . . . . . . . . Kills | -11 -10 -10 -9 -9 -9 -8 -8 -7 -6 -6 -5 -4 -4 -3 -3 -2 -1 ------- Run | Scr Mat Min Mat Min Exi Min Mat Fac Fac DSF Fac Fac DSF Res Tes Res Acc Combat Hostiles Destroyed 7 | . . . . . . . . 2 . . . . . 5 . . . AOE 4 | . . . . . . . . . . . . . . 4 . . . Classes Destroyed 7 | . . . . . . . . 3 . . 2 1 . . . 1 . Worker 2 | . . . . . . . . . . . . 2 . . . . . Builder 3 | . . . . . . . . 1 . . 1 1 . . . . . Hauler 2 | . . . . . . . . . . . 1 . . 1 . . . Recycler 1 | . . . . . . . . . . . 1 . . . . . . Operator 1 | . . . . . . . . . . . . . . . . 1 . Watcher 1 | . . . . . . . . 1 . . . . . . . . . Swarmer 7 | . . . . . . . . 2 . . . . . 5 . . . Best Kill Streak 5 | . . . . . . . . 2 . . 2 3 . 5 . 1 . Combat Bots Only 5 | . . . . . . . . 2 . . . . . 5 . . . Max Kills in Single Turn 2 | . . . . . . . . 1 . . 1 1 . 2 . 1 . Gunslinging . | . . . . . . . . . . . . . . . . . . Exploded 2 | . . . . . . . . . . . . . . 2 . . . Melee . | . . . . . . . . . . . . . . . . . . Uniques/NPCs Destroyed . | . . . . . . . . . . . . . . . . . . Combat | -11 -10 -10 -9 -9 -9 -8 -8 -7 -6 -6 -5 -4 -4 -3 -3 -2 -1 -------- Run | Scr Mat Min Mat Min Exi Min Mat Fac Fac DSF Fac Fac DSF Res Tes Res Acc Damage Taken 2716 | . 89 . 294 . . 271 784 17 . 128 358 . 340 179 . 121 135 Core 731 | . 10 . 77 . . 89 410 17 . 10 67 . 36 15 . . . Absorbed by Shields . | . . . . . . . . . . . . . . . . . . Redirected to Shielding 101 | . . . . . . . . . . . . . . 18 . 26 57 Core Remaining (%) 87 | 100 . 96 . . . 58 25 97 . 98 93 . 96 . 98 100 100 Volleys Fired 4 | . . . . . . . . . . . . . . 4 . . . Largest 1 | . . . . . . . . . . . . . . 1 . . . Hottest 33 | . . . . . . . . . . . . . . 33 . . . Shots Fired 4 | . . . . . . . . . . . . . . 4 . . . Gun 1 | . . . . . . . . . . . . . . 1 . . . Cannon . | . . . . . . . . . . . . . . . . . . Launcher 3 | . . . . . . . . . . . . . . 3 . . . Special . | . . . . . . . . . . . . . . . . . . Kinetic 1 | . . . . . . . . . . . . . . 1 . . . Thermal . | . . . . . . . . . . . . . . . . . . Explosive 3 | . . . . . . . . . . . . . . 3 . . . Electromagnetic . | . . . . . . . . . . . . . . . . . . Robot Hit Streak 1 | . . . . . . . . . . . . . . 1 . . . Robot Miss Streak . | . . . . . . . . . . . . . . . . . . Penetration Max . | . . . . . . . . . . . . . . . . . . Secondary Targets . | . . . . . . . . . . . . . . . . . . Shots Hit Robots 20 | . . . . . . . . 5 . . 3 3 . 8 . 1 . Core Hits 10 | . . . . . . . 2 . . . . . . 8 . . . Critical Kills . | . . . . . . . . . . . . . . . . . . Critical Parts Destroyed 4 | . . . . . . . . 1 . . . 2 . 1 . . . Critical Strikes 4 | . . . . . . . . 1 . . . 2 . 1 . . . Smash 4 | . . . . . . . . 1 . . . 2 . 1 . . . Melee Attacks 44 | . . . . . . . . 6 . 2 10 3 . 12 . 9 2 Impact 44 | . . . . . . . . 6 . 2 10 3 . 12 . 9 2 Slashing . | . . . . . . . . . . . . . . . . . . Piercing . | . . . . . . . . . . . . . . . . . . Sneak Attacks 8 | . . . . . . . . 1 . . 3 3 . 1 . . . Combat Hostiles . | . . . . . . . . . . . . . . . . . . Follow-up Attacks . | . . . . . . . . . . . . . . . . . . Damage Inflicted 1708 | . . 5 1 . . . 13 308 . . 277 228 . 824 . 52 . Guns 23 | . . . . . . . . . . . . . . 23 . . . Cannons . | . . . . . . . . . . . . . . . . . . Explosions 389 | . . . . . . . . . . . . . . 389 . . . Melee 1277 | . . . . . . . . 308 . . 277 228 . 412 . 52 . Ramming 19 | . . 5 1 . . . 13 . . . . . . . . . . Kinetic 23 | . . . . . . . . . . . . . . 23 . . . Thermal . | . . . . . . . . . . . . . . . . . . Explosive 389 | . . . . . . . . . . . . . . 389 . . . Electromagnetic . | . . . . . . . . . . . . . . . . . . Impact 1277 | . . . . . . . . 308 . . 277 228 . 412 . 52 . Slashing . | . . . . . . . . . . . . . . . . . . Piercing . | . . . . . . . . . . . . . . . . . . Highest Corruption . | . . . . . . . . . . . . . . . . . . Average Corruption . | . . . . . . . . . . . . . . . . . . Corruption Purged . | . . . . . . . . . . . . . . . . . . Corruption Blocked . | . . . . . . . . . . . . . . . . . . Overload Shots . | . . . . . . . . . . . . . . . . . . Overflow Damage 654 | . . . . . . . . 176 . . 157 188 . 91 . 42 . Projectiles . | . . . . . . . . . . . . . . . . . . Explosions . | . . . . . . . . . . . . . . . . . . Melee 654 | . . . . . . . . 176 . . 157 188 . 91 . 42 . Knockbacks 4 | . . . . . . . . 2 . . 1 . . 1 . . . Impact 4 | . . . . . . . . 2 . . 1 . . 1 . . . Kinetic . | . . . . . . . . . . . . . . . . . . Secondary . | . . . . . . . . . . . . . . . . . . Self-Inflicted Damage 15 | . . . . . . . . . . . . . . 15 . . . Shots 1 | . . . . . . . . . . . . . . 1 . . . Rammed 3 | . . 1 1 . . 1 . . . . . . . . . . . Targets Rammed 7 | . . 1 1 . . 1 4 . . . . . . . . . . Kicked 4 | . . . . . . . 4 . . . . . . . . . . Crushed . | . . . . . . . . . . . . . . . . . . Highest Temperature 32 | . . . . . . . 5 . . . 32 . . 16 . 1 . Average Temperature 12 | . . . . . . . 5 . . . 13 . . 16 . 1 . Received Heat Transfer 609 | . 24 . 63 . . 135 333 . . . 18 . . 9 . 27 . Siege Activations . | . . . . . . . . . . . . . . . . . . Robots Corrupted . | . . . . . . . . . . . . . . . . . . Combat Hostiles . | . . . . . . . . . . . . . . . . . . Parts Fried 17 | . . . . . . . . 4 . . 7 5 . . . 1 . Impact Corruptions 26 | . . . . . . . . 7 . . 7 6 . 4 . 2 . Robots Melted . | . . . . . . . . . . . . . . . . . . Combat Hostiles . | . . . . . . . . . . . . . . . . . . Parts Melted . | . . . . . . . . . . . . . . . . . . Heat Transferred . | . . . . . . . . . . . . . . . . . . Parts Sabotaged . | . . . . . . . . . . . . . . . . . . Parts Stolen . | . . . . . . . . . . . . . . . . . . Parts Stripped . | . . . . . . . . . . . . . . . . . . Power Chain Reactions . | . . . . . . . . . . . . . . . . . . Missiles Intercepted . | . . . . . . . . . . . . . . . . . . Alert | -11 -10 -10 -9 -9 -9 -8 -8 -7 -6 -6 -5 -4 -4 -3 -3 -2 -1 ------- Run | Scr Mat Min Mat Min Exi Min Mat Fac Fac DSF Fac Fac DSF Res Tes Res Acc Peak Influence 299 | . 45 17 26 9 . 30 130 299 146 119 282 152 106 181 134 134 129 Initial 146 | . . 17 6 9 . . . 49 146 102 62 137 106 42 104 75 79 Average 91 | . 18 17 16 9 . 11 48 135 146 110 162 143 92 140 120 109 87 Maximum Alert Level 1 | . . . . . . . . 1 . . 1 . . . . . . Low Security (%) 92 | 100 100 100 100 100 . 100 100 84 100 100 49 100 100 100 100 100 100 Level 1 7 | . . . . . . . . 15 . . 50 . . . . . . Level 2 . | . . . . . . . . . . . . . . . . . . Level 3 . | . . . . . . . . . . . . . . . . . . Level 4 . | . . . . . . . . . . . . . . . . . . Level 5 . | . . . . . . . . . . . . . . . . . . High Security . | . . . . . . . . . . . . . . . . . . Max Security . | . . . . . . . . . . . . . . . . . . Squads Dispatched 8 | . 2 . 1 . . . 1 . . 1 . . 1 1 . . 1 Investigation 3 | . 1 . . . . . 1 . . . . . . . . . 1 Extermination . | . . . . . . . . . . . . . . . . . . Reinforcement 5 | . 1 . 1 . . . . . . 1 . . 1 1 . . . Assault . | . . . . . . . . . . . . . . . . . . Garrison . | . . . . . . . . . . . . . . . . . . Intercept . | . . . . . . . . . . . . . . . . . . Searches Triggered . | . . . . . . . . . . . . . . . . . . Construction Impeded . | . . . . . . . . . . . . . . . . . . Haulers Reinforced 1 | . . . . . . . . . . . . . . 1 . . . Active Scanning Responses . | . . . . . . . . . . . . . . . . . . Cargo Convoy Interrupts . | . . . . . . . . . . . . . . . . . . Stealth | -11 -10 -10 -9 -9 -9 -8 -8 -7 -6 -6 -5 -4 -4 -3 -3 -2 -1 --------- Run | Scr Mat Min Mat Min Exi Min Mat Fac Fac DSF Fac Fac DSF Res Tes Res Acc Distress Signals 6 | . 1 . . . . . 4 . . . . . . . 1 . . Communications Jammed . | . . . . . . . . . . . . . . . . . . Distress Signals . | . . . . . . . . . . . . . . . . . . Times Spotted 92 | . 8 . 11 . . 9 17 5 . 5 14 . 5 7 2 3 6 Peak Tracking Total 13 | . 7 . 10 . . 6 13 3 . 4 10 . 4 5 5 2 5 Tactical Retreats 9 | . . . . . . 1 2 1 . 1 3 . . . . . 1 Traps | -11 -10 -10 -9 -9 -9 -8 -8 -7 -6 -6 -5 -4 -4 -3 -3 -2 -1 ------- Run | Scr Mat Min Mat Min Exi Min Mat Fac Fac DSF Fac Fac DSF Res Tes Res Acc Traps Triggered 3 | . 1 . . . . . . . . 1 1 . . . . . . Indirectly . | . . . . . . . . . . . . . . . . . . Trap Hack Attempts . | . . . . . . . . . . . . . . . . . . Triggered . | . . . . . . . . . . . . . . . . . . Disarmed . | . . . . . . . . . . . . . . . . . . Reprogrammed . | . . . . . . . . . . . . . . . . . . Reused . | . . . . . . . . . . . . . . . . . . Traps Extracted . | . . . . . . . . . . . . . . . . . . Installed . | . . . . . . . . . . . . . . . . . . Triggered . | . . . . . . . . . . . . . . . . . . Machines | -11 -10 -10 -9 -9 -9 -8 -8 -7 -6 -6 -5 -4 -4 -3 -3 -2 -1 ---------- Run | Scr Mat Min Mat Min Exi Min Mat Fac Fac DSF Fac Fac DSF Res Tes Res Acc Machines Disabled 1 | . . . . . . . . . . . 1 . . . . . . Max in Single Turn 1 | . . . . . . . . . . . 1 . . . . . . Machines Sabotaged . | . . . . . . . . . . . . . . . . . . Garrisons Compromised . | . . . . . . . . . . . . . . . . . . Overloaded Fab Kills . | . . . . . . . . . . . . . . . . . . Hacking | -11 -10 -10 -9 -9 -9 -8 -8 -7 -6 -6 -5 -4 -4 -3 -3 -2 -1 --------- Run | Scr Mat Min Mat Min Exi Min Mat Fac Fac DSF Fac Fac DSF Res Tes Res Acc Machines Accessed 10 | . . . . . . . 2 2 1 . 1 1 . . . 1 2 Terminals 10 | . . . . . . . 2 2 1 . 1 1 . . . 1 2 Fabricators . | . . . . . . . . . . . . . . . . . . Repair Stations . | . . . . . . . . . . . . . . . . . . Recycling Units . | . . . . . . . . . . . . . . . . . . Scanalyzers . | . . . . . . . . . . . . . . . . . . Garrison Access . | . . . . . . . . . . . . . . . . . . Total Hacks 20 | . . . . . . . 5 3 1 . 2 3 . . . 3 3 Successful 8 | . . . . . . . . 2 1 . 1 1 . . . 1 2 Failed 12 | . . . . . . . 5 1 . . 1 2 . . . 2 1 Catastrophic 5 | . . . . . . . 3 . . . . . . . . 1 1 Database Lockouts . | . . . . . . . . . . . . . . . . . . Manual 8 | . . . . . . . 5 3 . . . . . . . . . Terminals 20 | . . . . . . . 5 3 1 . 2 3 . . . 3 3 Fabricators . | . . . . . . . . . . . . . . . . . . Repair Stations . | . . . . . . . . . . . . . . . . . . Recycling Units . | . . . . . . . . . . . . . . . . . . Scanalyzers . | . . . . . . . . . . . . . . . . . . Garrison Access . | . . . . . . . . . . . . . . . . . . Terminal Hacks 6 | . . . . . . . . . 1 . 1 1 . . . 1 2 Open Door 1 | . . . . . . . . . . . . . . . . . 1 Open DSF 2 | . . . . . . . . . 1 . . 1 . . . . . Level Access Points 3 | . . . . . . . . . . . 1 . . . . 1 1 Fabricator Hacks . | . . . . . . . . . . . . . . . . . . Repair Station Hacks . | . . . . . . . . . . . . . . . . . . Recycling Unit Hacks . | . . . . . . . . . . . . . . . . . . Scanalyzer . | . . . . . . . . . . . . . . . . . . Garrison Access Hacks . | . . . . . . . . . . . . . . . . . . Unauthorized Hacks 2 | . . . . . . . . 2 . . . . . . . . . Terminals 2 | . . . . . . . . 2 . . . . . . . . . Botnet 2 | . . . . . . . . 2 . . . . . . . . . Fabricators . | . . . . . . . . . . . . . . . . . . Repair Stations . | . . . . . . . . . . . . . . . . . . Recycling Units . | . . . . . . . . . . . . . . . . . . Scanalyzers . | . . . . . . . . . . . . . . . . . . Garrison Access . | . . . . . . . . . . . . . . . . . . Data Cores Recovered 1 | . . . . . . . . . . . . . . . . 1 . Used . | . . . . . . . . . . . . . . . . . . Hacking Detections 8 | . . . . . . . 2 2 . . 1 1 . . . 1 1 Full Trace Events 3 | . . . . . . . 2 . . . . . . . . . 1 Feedback Events 1 | . . . . . . . . . . . . . . . . . 1 Hackware Fried 1 | . . . . . . . . . . . . . . . . . 1 Feedback Blocked . | . . . . . . . . . . . . . . . . . . Robot Schematics Acquired . | . . . . . . . . . . . . . . . . . . Robots Built . | . . . . . . . . . . . . . . . . . . Authchips . | . . . . . . . . . . . . . . . . . . Time . | . . . . . . . . . . . . . . . . . . Total Robot Build Rating . | . . . . . . . . . . . . . . . . . . Part Schematics Acquired . | . . . . . . . . . . . . . . . . . . Parts Built . | . . . . . . . . . . . . . . . . . . Authchips . | . . . . . . . . . . . . . . . . . . Time . | . . . . . . . . . . . . . . . . . . Total Part Build Rating . | . . . . . . . . . . . . . . . . . . Parts Repaired . | . . . . . . . . . . . . . . . . . . Time . | . . . . . . . . . . . . . . . . . . Parts Recycled . | . . . . . . . . . . . . . . . . . . Recycled Matter . | . . . . . . . . . . . . . . . . . . Retrieved Matter . | . . . . . . . . . . . . . . . . . . Retrieved Components . | . . . . . . . . . . . . . . . . . . Parts Scanalyzed . | . . . . . . . . . . . . . . . . . . Part Schematics Acquired . | . . . . . . . . . . . . . . . . . . Parts Damaged . | . . . . . . . . . . . . . . . . . . Bothacking | -11 -10 -10 -9 -9 -9 -8 -8 -7 -6 -6 -5 -4 -4 -3 -3 -2 -1 ------------ Run | Scr Mat Min Mat Min Exi Min Mat Fac Fac DSF Fac Fac DSF Res Tes Res Acc Used RIF Installer . | . . . . . . . . . . . . . . . . . . Robots Hacked . | . . . . . . . . . . . . . . . . . . Non-combat . | . . . . . . . . . . . . . . . . . . Combat . | . . . . . . . . . . . . . . . . . . Robot Hacks Applied . | . . . . . . . . . . . . . . . . . . Relay Couplers Released . | . . . . . . . . . . . . . . . . . . Fabnet Peak Effective % . | . . . . . . . . . . . . . . . . . . Robots Rewired . | . . . . . . . . . . . . . . . . . . Allies Hacked . | . . . . . . . . . . . . . . . . . . Hacks Repelled . | . . . . . . . . . . . . . . . . . . Allies | -11 -10 -10 -9 -9 -9 -8 -8 -7 -6 -6 -5 -4 -4 -3 -3 -2 -1 -------- Run | Scr Mat Min Mat Min Exi Min Mat Fac Fac DSF Fac Fac DSF Res Tes Res Acc Total Allies . | . . . . . . . . . . . . . . . . . . Largest Group . | . . . . . . . . . . . . . . . . . . Highest-Rated Group . | . . . . . . . . . . . . . . . . . . Highest-Rated Ally . | . . . . . . . . . . . . . . . . . . Total Orders . | . . . . . . . . . . . . . . . . . . Ally Attacks . | . . . . . . . . . . . . . . . . . . Total Damage . | . . . . . . . . . . . . . . . . . . Kills . | . . . . . . . . . . . . . . . . . . Allies Corrupted . | . . . . . . . . . . . . . . . . . . Allies Melted . | . . . . . . . . . . . . . . . . . . Intel | -11 -10 -10 -9 -9 -9 -8 -8 -7 -6 -6 -5 -4 -4 -3 -3 -2 -1 ------- Run | Scr Mat Min Mat Min Exi Min Mat Fac Fac DSF Fac Fac DSF Res Tes Res Acc Robot Analysis Total . | . . . . . . . . . . . . . . . . . . Derelict Logs Recovered . | . . . . . . . . . . . . . . . . . . Drone Launches . | . . . . . . . . . . . . . . . . . . Drone Recoveries . | . . . . . . . . . . . . . . . . . . Exploration | -11 -10 -10 -9 -9 -9 -8 -8 -7 -6 -6 -5 -4 -4 -3 -3 -2 -1 ------------- Run | Scr Mat Min Mat Min Exi Min Mat Fac Fac DSF Fac Fac DSF Res Tes Res Acc Turns Passed 1123 | 8 34 9 71 17 15 77 198 129 11 47 131 19 30 104 50 100 73 Spaces Moved 2465 | 1 68 15 127 34 29 150 354 284 30 96 341 34 83 141 171 238 269 Core 776 | 1 68 15 127 34 29 150 352 . . . . . . . . . . Treads . | . . . . . . . . . . . . . . . . . . Legs . | . . . . . . . . . . . . . . . . . . Wheels . | . . . . . . . . . . . . . . . . . . Hover . | . . . . . . . . . . . . . . . . . . Flight 1689 | . . . . . . . 2 284 30 96 341 34 83 141 171 238 269 Fastest Speed 19 | 50 50 50 50 50 50 50 50 32 32 19 24 30 26 27 29 24 22 Average Speed 34 | 50 50 50 50 50 50 50 50 32 32 30 26 30 28 27 29 28 23 Slowest Speed 65 | 50 50 50 50 50 50 50 65 32 32 32 32 30 30 32 29 29 25 Overloaded Moves . | . . . . . . . . . . . . . . . . . . Propulsion Burnouts . | . . . . . . . . . . . . . . . . . . Robots Hopped 10 | . . . . . . . 1 . . 1 . . 2 1 2 2 1 Cave-ins Triggered . | . . . . . . . . . . . . . . . . . . Exploration Rate (%) 22 | 2 25 7 16 10 8 44 35 12 2 80 19 2 87 4 24 12 11 Regions Visited 17 Branch Regions 5 Pre-discovered Areas . | . . . . . . . . . . . . . . . . . . Known Exits Taken 4 | . . . . . . . . . 1 . 1 1 . . . 1 . Unknown Exits Taken 11 | 1 1 1 1 1 1 1 1 1 . . . . . 1 1 . . Scrap Searched 2 | . . . . . . 2 . . . . . . . . . . . Spaces Dug 27 | . . . . . . . . 1 . 2 6 . . 8 . 8 2 Terrain Destroyed 32 | . . . . . . . . 1 . 2 6 . . 13 . 8 2 Melee 21 | . . . . . . . . 1 . 2 6 . . 2 . 8 2 Projectile . | . . . . . . . . . . . . . . . . . . AOE 11 | . . . . . . . . . . . . . . 11 . . . Terrain Rammed . | . . . . . . . . . . . . . . . . . . Walls Destroyed . | . . . . . . . . . . . . . . . . . . Machines Disabled . | . . . . . . . . . . . . . . . . . . Actions | -11 -10 -10 -9 -9 -9 -8 -8 -7 -6 -6 -5 -4 -4 -3 -3 -2 -1 --------- Run | Scr Mat Min Mat Min Exi Min Mat Fac Fac DSF Fac Fac DSF Res Tes Res Acc Total 2598 | 14 67 15 132 33 28 150 369 307 30 108 360 36 85 175 168 250 271 Wait 15 | . . . . . . . 4 4 . . 1 . . 6 . . . Move 2428 | . 67 14 126 33 28 149 351 283 29 93 340 33 78 138 166 234 266 Hop 9 | . . . . . . . 1 . . 1 . . 2 1 2 1 1 Pick Up 20 | . . . 4 . . . 2 3 . 5 1 . 1 3 . 1 . Fast Attach 29 | . . . 1 . . . 6 5 . 2 4 . 2 5 . 3 1 Attach 16 | 2 . . . . . . . 5 1 . 1 . 2 3 . 1 1 Detach 7 | 4 . . . . . . . . . . 1 . . 2 . . . Swap 1 | . . . . . . . . . . . 1 . . . . . . Drop 15 | 8 . . . . . . 1 1 . 2 1 . . 1 . 1 . Fire 4 | . . . . . . . . . . . . . . 4 . . . Melee 44 | . . . . . . . . 6 . 2 10 3 . 12 . 9 2 Ram . | . . . . . . . . . . . . . . . . . . Kick 4 | . . . . . . . 4 . . . . . . . . . . Crush 3 | . . 1 1 . . 1 . . . . . . . . . . . Escape Stasis 3 | . . . . . . . . . . 3 . . . . . . . Rewire . | . . . . . . . . . . . . . . . . . . Trap . | . . . . . . . . . . . . . . . . . . Miscellaneous . | . . . . . . . . . . . . . . . . . . Route ------- -11/Scrapyard -10/Materials -10/Mines -9/Materials -9/Mines -9/Exiles -8/Mines -8/Materials -7/Factory -6/Factory -6/DSF -5/Factory (discovered 4 exits: *Fac x4) -4/Factory -4/DSF -3/Research -3/Testing -2/Research (discovered 3 exits: *Acc x3) -1/Access To Epsilon Eridani History --------- Turn | Location | Event 9 | -11/Scrapyard | Discovered new exit (range 0) 9 | -11/Scrapyard | Entered Materials 36 | -10/Materials | Discovered new exit (range 16) 43 | -10/Materials | Entered Mines 48 | -10/Mines | Discovered new exit (range 4) 52 | -10/Mines | Entered Materials 52 | -9/Materials | Evolved 2 slots: Propulsion x2 100 | -9/Materials | Discovered new exit (range 15) 123 | -9/Materials | Entered Mines 138 | -9/Mines | Deemed a non-threat by the Exiles lab entrance 138 | -9/Mines | Discovered new exit (range 5) 140 | -9/Mines | Entered Exiles 147 | -9/Exiles | Discovered new exit (range 15) 155 | -9/Exiles | Entered Mines 224 | -8/Mines | Discovered new exit (range 16) 232 | -8/Mines | Entered Materials 232 | -8/Materials | Evolved 2 slots: Propulsion x1, Utility x1 260 | -8/Materials | Lost 3 parts (1n2w) 309 | -8/Materials | Build established: Mutant 393 | -8/Materials | Core integrity fell below 50% 418 | -8/Materials | Discovered new exit (range 12) 430 | -8/Materials | Entered Factory 430 | -7/Factory | Evolved 2 slots: Propulsion x1, Utility x1 460 | -7/Factory | Lost 3 parts (3n) 557 | -7/Factory | Discovered new exit (range 5) 559 | -7/Factory | Entered another Factory area 559 | -6/Factory | Evolved 2 slots: Propulsion x1, Utility x1 570 | -6/Factory | Identified exit to DSF 570 | -6/Factory | Entered DSF 589 | -6/DSF | Additional patrols routed to DSF 611 | -6/DSF | Discovered new exit (range 15) 617 | -6/DSF | Entered Factory 617 | -5/Factory | Evolved 2 slots: Power x1, Utility x1 656 | -5/Factory | Identified exit to Factory 748 | -5/Factory | Entered another Factory area 748 | -4/Factory | Evolved 2 slots: Utility x2 753 | -4/Factory | Lost 3 parts (1p2n) 765 | -4/Factory | Build established: Hacker-Sprinter 767 | -4/Factory | Identified exit to DSF 767 | -4/Factory | Entered DSF 783 | -4/DSF | Additional patrols routed to DSF 793 | -4/DSF | Discovered new exit (range 15) 797 | -4/DSF | Entered Research 797 | -3/Research | Evolved 2 slots: Propulsion x1, Utility x1 858 | -3/Research | Lost 6 parts (3n3u) 894 | -3/Research | Discovered new exit (range 5) 901 | -3/Research | Entered Testing 943 | -3/Testing | Discovered new exit (range 12) 951 | -3/Testing | Entered Research 951 | -2/Research | Evolved 2 slots: Propulsion x1, Utility x1 972 | -2/Research | Identified exit to Access 1021 | -2/Research | Spotted B-90 Cyclops 1051 | -2/Research | Entered Access 1051 | -1/Access | Evolved 2 slots: Propulsion x1, Utility x1 1053 | -1/Access | Spotted B-99 Colossus 1099 | -1/Access | Identified exit to Surface 1099 | -1/Access | System Shield fried by hacking feedback 1124 | *** | Escaped! Last Messages --------------- 01099_ Connecting with Terminal... >>Access(Main) Found 1 level access point to Surface: (163,91) Map updated. Feedback: System Shield fried. 01099_ ALERT: Suspicious activity at Terminal A012. Dispatching Investigation squad. 01104_ K-01 Serf cleans the Terminal. 01108_ Acquired Field Propulsion Drive. 01119_ Slug penetrates Wall. 01119_ VTOL Module destroyed. 01122_ Slug penetrates Terminal. 01122_ Connecting with Terminal... >>Open(Door) Sealed Barrier opened. 01122_ Slug penetrates Terminal. 01122_ Penetrated by Slug. 01122_ Imp. Propulsion Shielding destroyed. 01123_ The Access Shell folds into the floor. Map ----- +----------------------------------------------------+ | ?????????????????????????????????????????????????? | | ?????????????????????????????????????????????????? | | ?????????????????????????????????????????????????? | | ?????????????????????????????????????????????????? | | ?????????????????????????????????????????????????? | | ?????????????????????????????????????????????????? | | ?????????????????????????????????????????????????? | | ?????????????????????????????????????????????????? | | ?????????????????????????????????????????????????? | | ?????????????????????????????????????????????????? | | ?????????????????????????????????????????????????? | | ?????????????????????????????????????????????????? | | ?????????????????????????????????????????????????? | | ?????????????????????????????????????????????????? | | "????????????????????????????????????????????????? | | "????????????????????????????????????????????????? | | ?????????????????????????????????????????????????? | | ?????????????????????????????????????????????????? | | ?????????????????????????????????????????????????? | | ?????????????????????????????????????????????????? | | ???????????????????#""""""""""#??????????????????? | | ???????????????????# #??????????????????? | | ???????????????????# #??????????????????? | | ???????????????????# #??????????????????? | | ???????????????????# "" #????"""S"""???????? | | ???????????????????# "@ #????"""?"""???????? | | ???????????????????# #??????????????????? | | ???????????????????# #??????????????????? | | ???????????????????# #??????????????????? | | ??????????????????## ##??????""?????????? | | ??????????????????# #??????""?????????? | | ??????????????????##"" ##????""""""???????? | | ???????????????????#"" #?????""""""???????? | | ???????????????????#"" #???????""?????????? | | ???????????????????#T #???????""?????????? | | ???????????????????#"" #??????????????????? | | ???????????????????#"" #??????????????????? | | ??????##############"" #####+#####????????? | | ?? h h ????? | | ?? ????? | | ??????########+########;##################???????? | | ??????????????????#####;##???????????????????????? | | ??????????????????# #???????????????????????? | | ??????????????????# #???????????????????????? | | ??????????????????# #???????????????????????? | | ??????????????????# #???????????????????????? | | ?????????????"????###+##+#??????????????"????????? | | ????????????"""?????# +?????????????"""???????? | | ???????????"""??????# ####????????????"""????????? | | ????????????"?????### ###??????????????"?????????? | +----------------------------------------------------+ Best States ------------- Heat Dissipation 79 Energy Generation 25 Energy Capacity 170 Matter Stores 300 Matter Capacity 300 Sight Range 22 Terrain Scan Density 10 Armor Coverage 150 Propulsion Shielding 66 Evasion (%) 65 Offensive Hacking 20 Defensive Hacking 20 Item Schematics ----------------- None Robot Schematics ------------------ None Fabricated ------------ Nothing Alien Tech Used ----------------- None Achievements -------------- None Challenges ------------ None Game ------ Seed XenonBiomechanicalGravjet Manual? 0 Play Time 00:14:49 Cumulative 807.6 hours Start 2022.08.27 @ 11:25:41 End 2022.08.27 @ 11:39:34 Sessions 1 Manual Loads 0 Difficulty Rogue Special Mode None Game No. 362 Rogue 361 Adventurer 1 Explorer 0 Win Type 0 Total 108 Types 27/11/16/3/2/1/46/1/1 Lore% 98 Gallery% 99 Achievement% 90 Wizard Run 0 Options --------- ASCII 1 Keyboard 1 Movement Numpad Keybinds 0 Fullscreen 0 Font 18/Smallcaps Map View 76x50 Tactical HUD 1 Map Filters NONE Filters NONE Steam 1 RUN: 9198f9dd-d22b-405a-9879-131b4c720e15